fUST/lending_fUST_20250810
["ID","MTS","AMOUNT","RATE_DAILY","PERIOD"]
[378267001,1754807443053,-4150.93999885,0.00021613,5]
[378267003,1754807443062,-8346.34448842,0.00021616,2]
[378267005,1754807443071,-10731.89641324,0.0002162,2]
[378267007,1754807443082,-151.0,0.0002162,2]
[378267009,1754807443091,-500.0,0.00021654,2]
[378267011,1754807443100,-500.0,0.00021654,2]
[378267013,1754807443110,-555.74864105,0.00021654,2]
[378267015,1754807443119,-1307.46320104,0.00021655,2]
[378267017,1754807443129,-500.0,0.00021673,2]
[378267019,1754807443138,-569.97181184,0.00021673,2]
[378267021,1754807443147,-500.0,0.00021673,2]
[378267023,1754807443157,-356.56659677,0.00021698,2]
[378267025,1754807443167,-460.0,0.00021715,2]
[378267027,1754807443177,-460.0,0.00021715,2]
[378267029,1754807443187,-460.0,0.00021716,2]
[378267031,1754807443197,-460.0,0.00021716,2]
[378267033,1754807443207,-529.42015441,0.00021716,2]
[378267035,1754807443217,-460.0,0.00021716,2]
[378267037,1754807443227,-460.0,0.00021716,2]
[378267039,1754807443236,-460.0,0.00021716,2]
[378267041,1754807443246,-460.0,0.00021716,2]
[378267043,1754807443255,-460.0,0.00021716,2]
[378267045,1754807443266,-460.0,0.00021716,2]
[378267047,1754807443276,-460.0,0.00021716,2]
[378267049,1754807443285,-460.0,0.00021716,2]
[378267051,1754807443295,-460.0,0.00021716,2]
[378267053,1754807443304,-460.0,0.00021716,2]
[378267056,1754807443314,-460.0,0.00021716,2]
[378267058,1754807443323,-460.0,0.00021716,2]
[378267060,1754807443332,-465.65430011,0.00021716,2]
[378267062,1754807443341,-460.0,0.00021716,2]
[378267064,1754807443351,-631.88,0.00021716,2]
[378267066,1754807443361,-460.0,0.00021716,2]
[378267068,1754807443371,-460.0,0.00021716,2]
[378267070,1754807443380,-460.0,0.00021716,2]
[378267072,1754807443390,-460.0,0.00021716,2]
[378267075,1754807443399,-1213.7,0.00021716,2]
[378267077,1754807443408,-460.0,0.00021716,2]
[378267079,1754807443418,-524.83,0.00021716,2]
[378267081,1754807443427,-151.02,0.00021716,2]
[378267083,1754807443437,-460.0,0.00021716,2]
[378267085,1754807443446,-514.62,0.00021716,2]
[378267100,1754807443556,-460.0,0.00021716,2]
[378267103,1754807443590,-181.46179835,0.00021716,2]
[378267105,1754807443600,-460.0,0.00021716,2]
[378267107,1754807443612,-539.32,0.00021716,2]
[378267109,1754807443625,-460.0,0.00021716,2]
[378267111,1754807443636,-460.0,0.00021716,2]
[378267113,1754807443646,-466.5715105,0.00021716,2]
[378267115,1754807443658,-464.8982935,0.00021716,2]
[378267117,1754807443669,-460.0,0.00021716,2]
[378267119,1754807443678,-151.0,0.00021716,2]
[378267121,1754807443689,-460.0,0.00021716,2]
[378267123,1754807443700,-460.0,0.00021716,2]
[378267126,1754807443711,-467.8693191,0.00021716,2]
[378267128,1754807443721,-978.94143065,0.00021716,2]
[378267173,1754807444167,-165.63337877,0.00021441,2]
[378267175,1754807444177,-466.81592561,0.00021443,2]
[378267177,1754807444187,-345.98362735,0.00021619,2]
[378267179,1754807444196,-500.0,0.00021619,2]
[378267181,1754807444205,-500.0,0.00021619,2]
[378267184,1754807444215,-500.0,0.00021619,2]
[378267185,1754807444224,-500.0,0.00021619,2]
[378267187,1754807444233,-500.0,0.00021619,2]
[378267190,1754807444243,-500.0,0.00021619,2]
[378267192,1754807444252,-500.0,0.00021619,2]
[378267194,1754807444261,-12.27613572,0.00021619,2]
[378267207,1754807444380,-282.16,0.0002161,10]
[378267209,1754807444390,-487.72386428,0.00021619,2]
[378267211,1754807444400,-396.74682912,0.00021619,2]
[378267213,1754807444409,-500.0,0.00021619,2]
[378267215,1754807444418,-500.0,0.00021619,2]
[378267217,1754807444429,-16.33856935,0.00021716,2]
[378267219,1754807444438,-460.0,0.00021716,2]
[378267221,1754807444448,-460.0,0.00021716,2]
[378267223,1754807444457,-460.0,0.00021716,2]
[378267226,1754807444467,-460.0,0.00021716,2]
[378267228,1754807444476,-460.0,0.00021716,2]
[378267230,1754807444487,-970.93398758,0.00021717,2]
[378267232,1754807444496,-468.7717339,0.00021717,2]
[378267234,1754807444506,-460.0,0.00021717,2]
[378267236,1754807444515,-460.0,0.00021717,2]
[378267237,1754807444524,-460.0,0.00021717,2]
[378267240,1754807444534,-460.0,0.00021717,2]
[378267242,1754807444543,-460.0,0.00021717,2]
[378267244,1754807444553,-460.0,0.00021717,2]
[378267246,1754807444562,-460.0,0.00021717,2]
[378267248,1754807444572,-460.0,0.00021717,2]
[378267250,1754807444581,-475.27009664,0.00021717,2]
[378267251,1754807444590,-460.0,0.00021717,2]
[378267254,1754807444600,-460.0,0.00021717,2]
[378267256,1754807444611,-460.0,0.00021717,2]
[378267257,1754807444622,-460.0,0.00021717,2]
[378267259,1754807444634,-175.05492313,0.00021717,2]
[378267357,1754807446037,-367.72475154,0.00021441,2]
[378267358,1754807446046,-460.0,0.00021445,2]
[378267359,1754807446056,-284.94507687,0.00021717,2]
[378267360,1754807446065,-463.31184418,0.00021717,2]
[378267361,1754807446075,-462.113371,0.00021717,2]
[378267362,1754807446084,-460.0,0.00021717,2]
[378267363,1754807446094,-460.0,0.00021717,2]
[378267364,1754807446103,-463.79328594,0.00021717,2]
[378267365,1754807446113,-460.0,0.00021717,2]
[378267366,1754807446122,-528.22972983,0.00021717,2]
[378267367,1754807446132,-462.40122894,0.00021717,2]
[378267368,1754807446142,-460.0,0.00021717,2]
[378267369,1754807446152,-448.44676449,0.00021717,2]
[378267370,1754807446161,-462.46924272,0.00021717,2]
[378267371,1754807446170,-460.0,0.00021717,2]
[378267372,1754807446180,-460.0,0.00021717,2]
[378267373,1754807446189,-460.0,0.00021717,2]
[378267374,1754807446199,-249.84,0.00021717,2]
[378267375,1754807446209,-700.05,0.00021717,2]
[378267376,1754807446219,-151.0,0.00021717,2]
[378267377,1754807446230,-427.23070043,0.00021717,2]
[378267378,1754807446240,-460.0,0.00021717,2]
[378267379,1754807446250,-486.54183966,0.00021717,2]
[378267380,1754807446260,-460.0,0.00021717,2]
[378267381,1754807446270,-460.0,0.00021717,2]
[378267382,1754807446280,-382.07418891,0.00021717,2]
[378267383,1754807446289,-460.0,0.00021717,2]
[378267384,1754807446299,-460.0,0.00021717,2]
[378267385,1754807446309,-460.0,0.00021717,2]
[378267386,1754807446319,-157.98,0.00021718,2]
[378267387,1754807446328,-460.0,0.00021718,2]
[378267388,1754807446338,-460.0,0.00021718,2]
[378267389,1754807446349,-464.84588878,0.00021718,2]
[378267390,1754807446358,-468.02075597,0.00021718,2]
[378267391,1754807446369,-471.08501348,0.00021718,2]
[378267392,1754807446379,-460.0,0.00021718,2]
[378267393,1754807446389,-460.0,0.00021718,2]
[378267394,1754807446399,-460.0,0.00021718,2]
[378267395,1754807446409,-460.0,0.00021718,2]
[378267396,1754807446418,-466.83791666,0.00021718,2]
[378267397,1754807446428,-503.87,0.00021718,2]
[378267398,1754807446438,-460.0,0.00021718,2]
[378267399,1754807446447,-460.0,0.00021718,2]
[378267400,1754807446457,-460.0,0.00021718,2]
[378267401,1754807446466,-467.26157762,0.00021718,2]
[378267402,1754807446476,-460.0,0.00021718,2]
[378267403,1754807446485,-460.0,0.00021718,2]
[378267404,1754807446495,-460.0,0.00021718,2]
[378267405,1754807446505,-471.47936885,0.00021718,2]
[378267406,1754807446514,-460.0,0.00021718,2]
[378267407,1754807446524,-460.0,0.00021718,2]
[378267408,1754807446534,-460.0,0.00021718,2]
[378267409,1754807446543,-460.0,0.00021718,2]
[378267410,1754807446553,-460.0,0.00021718,2]
[378267411,1754807446562,-460.0,0.00021718,2]
[378267412,1754807446572,-460.0,0.00021718,2]
[378267413,1754807446582,-460.0,0.00021718,2]
[378267414,1754807446595,-151.0,0.00021718,2]
[378267415,1754807446613,-460.0,0.00021718,2]
[378267416,1754807446624,-460.0,0.00021718,2]
[378267417,1754807446636,-460.0,0.00021719,2]
[378267418,1754807446646,-460.0,0.00021719,2]
[378267419,1754807446656,-460.0,0.00021719,2]
[378267420,1754807446666,-460.0,0.00021719,2]
[378267421,1754807446676,-462.59840288,0.00021719,2]
[378267422,1754807446685,-460.0,0.00021719,2]
[378267423,1754807446695,-460.0,0.00021719,2]
[378267424,1754807446705,-463.82584705,0.00021719,2]
[378267425,1754807446715,-460.0,0.00021719,2]
[378267426,1754807446725,-460.0,0.00021719,2]
[378267427,1754807446735,-259.414525,0.00021719,2]
[378267428,1754807446744,-151.0,0.00021719,2]
[378267429,1754807446754,-151.0,0.00021719,2]
[378267430,1754807446763,-460.0,0.00021719,2]
[378267431,1754807446772,-151.0,0.00021719,2]
[378267432,1754807446782,-460.0,0.00021719,2]
[378267433,1754807446792,-460.0,0.00021719,2]
[378267434,1754807446801,-460.0,0.00021719,2]
[378267435,1754807446810,-182.33284342,0.00021719,2]
[378267436,1754807446820,-151.0,0.00021719,2]
[378267437,1754807446829,-460.0,0.00021719,2]
[378267438,1754807446839,-460.0,0.00021719,2]
[378267439,1754807446848,-460.0,0.00021719,2]
[378267440,1754807446858,-460.0,0.00021719,2]
[378267441,1754807446868,-542.13,0.00021719,2]
[378267442,1754807446878,-151.0,0.00021719,2]
[378267443,1754807446888,-460.0,0.00021719,2]
[378267444,1754807446897,-460.0,0.00021719,2]
[378267445,1754807446907,-460.0,0.00021719,2]
[378267447,1754807446917,-460.0,0.00021719,2]
[378267449,1754807446928,-467.50234372,0.00021719,2]
[378267451,1754807446938,-1198.86,0.00021719,2]
[378267454,1754807446948,-460.0,0.00021719,2]
[378267455,1754807446958,-460.0,0.0002172,2]
[378267456,1754807446967,-460.0,0.0002172,2]
[378267457,1754807446976,-500.0,0.0002172,2]
[378267458,1754807446985,-151.0,0.0002172,2]
[378267459,1754807446995,-151.83116097,0.0002172,2]
[378267461,1754807447004,-151.0,0.0002172,2]
[378267463,1754807447013,-151.0,0.0002172,2]
[378267465,1754807447024,-153.10220531,0.0002172,2]
[378267467,1754807447033,-460.0,0.0002172,2]
[378267469,1754807447042,-468.68814104,0.0002172,2]
[378267471,1754807447051,-460.0,0.0002172,2]
[378267472,1754807447061,-151.0,0.0002172,2]
[378267474,1754807447073,-151.0,0.0002172,2]
[378267476,1754807447082,-460.0,0.0002172,2]
[378267478,1754807447091,-241.66024965,0.0002172,2]
[378267480,1754807447100,-151.63516083,0.0002172,2]
[378267482,1754807447110,-151.0,0.0002172,2]
[378267484,1754807447120,-156.2251918,0.0002172,2]
[378267486,1754807447129,-151.0,0.0002172,2]
[378267488,1754807447138,-460.0,0.0002172,2]
[378267490,1754807447147,-151.67827244,0.0002172,2]
[378267492,1754807447157,-500.0,0.00021773,2]
[378267494,1754807447166,-500.0,0.00021773,2]
[378267496,1754807447177,-500.0,0.00021773,2]
[378267498,1754807447186,-200.02494388,0.00021773,2]
[378267500,1754807447195,-500.0,0.00021773,2]
[378267502,1754807447205,-500.0,0.00021773,2]
[378267504,1754807447214,-500.0,0.00021773,2]
[378267506,1754807447223,-432.30259712,0.00021773,2]
[378268660,1754807506241,257.39604515,0.00019618,2]
[378268662,1754807561341,293.054027,0.00013699,2]
[378268663,1754807561559,293.054027,0.00020187,2]
[378268664,1754807564001,1544.39137468,0.000199,2]
[378268666,1754807605329,500.0,0.0003,120]
[378268667,1754807664988,160.0,0.0002,3]
[378268668,1754807700032,24900.0,0.00020526,2]
[378268670,1754807760329,2120.70215634,0.000199,2]
[378268671,1754807807384,91.10770577,0.00019618,2]
[378268672,1754807807407,80.48965766,0.00019618,2]
[378268675,1754807960791,2184.49784789,0.000199,2]
[378268676,1754807969980,160.0,0.0002,3]
[378268679,1754808110971,150.0,0.00019618,2]
[378268680,1754808135075,2158.57835356,0.000199,2]
[378268681,1754808156886,302.84859387,0.00019701,2]
[378268682,1754808156943,454.27289081,0.00019899,4]
[378268683,1754808156997,454.27289081,0.00020096,4]
[378268684,1754808157056,515.0498498,0.00020293,4]
[378268685,1754808210980,263.90749137,0.00020558,5]
[378268686,1754808213854,188.05042319,0.00020558,5]
[378268687,1754808233923,2000.0,0.00030136,120]
[378268688,1754808274234,160.0,0.0002,3]
[378268689,1754808296896,179.72642403,0.00020779,2]
[378268690,1754808298907,718.90569612,0.00020779,2]
[378268691,1754808301409,1617.53781627,0.00020779,2]
[378268692,1754808303523,2875.62278448,0.00020779,2]
[378268693,1754808305631,4493.16060074,0.00020779,2]
[378268694,1754808307941,6470.15126507,0.00020779,2]
[378268695,1754808310241,8806.59477746,0.00020779,2]
[378268696,1754808312820,7766.33263687,0.00020779,2]
[378268697,1754808312843,3736.15850104,0.00020779,2]
[378268698,1754808316200,2086.62574162,0.000199,2]
[378268699,1754808336498,236.83434758,0.00020779,2]
[378268700,1754808338675,947.33739031,0.00020779,2]
[378268701,1754808340903,2131.50912819,0.00020779,2]
[378268702,1754808343201,3789.34956124,0.00020779,2]
[378268703,1754808345341,-292877.74732749,0.00031525,30]
[378268704,1754808345377,-1502.2290003,0.00031525,35]
[378268705,1754808345409,-150.0,0.00031525,30]
[378268706,1754808345729,5920.85868943,0.00020779,2]
[378268707,1754808351425,8526.03651278,0.00020779,2]
[378268708,1754808369460,250.0,0.00031525,30]
[378268709,1754808369793,294.038868,0.00031525,30]
[378268710,1754808392994,1217.79402509,0.00031525,30]
[378268711,1754808407405,177.53081,0.00020341,2]
[378268712,1754808425226,3000.0,0.00031525,120]
[378268713,1754808445290,1217.79402509,0.00031525,30]
[378268714,1754808458288,277.31395585,0.0003,120]
[378268715,1754808468515,201.455644,0.00027,30]
[378268716,1754808487848,3000.0,0.00031525,120]
[378268717,1754808498384,2017.07155031,0.000199,2]
[378268718,1754808503232,370.21485218,0.0003,120]
[378268719,1754808508057,2776.0,0.00021908,120]
[378268720,1754808508500,2776.0,0.00021898,120]
[378268721,1754808508785,1012.0,0.00021908,120]
[378268722,1754808509109,2776.0,0.00021888,120]
[378268723,1754808509225,1012.0,0.00021898,120]
[378268724,1754808509416,2776.0,0.00024889,120]
[378268725,1754808509666,1012.0,0.00021888,120]
[378268726,1754808509869,2776.0,0.00024879,120]
[378268727,1754808510118,1012.0,0.00024889,120]
[378268728,1754808510316,2776.0,0.00024869,120]
[378268729,1754808510597,1012.0,0.00024879,120]
[378268730,1754808510757,2776.0,0.0002728,120]
[378268731,1754808511039,1012.0,0.00024869,120]
[378268732,1754808511218,2776.0,0.0002727,120]
[378268733,1754808511628,1012.0,0.0002728,120]
[378268734,1754808512101,1012.0,0.0002727,120]
[378268739,1754808547984,1217.79402509,0.00031525,30]
[378268740,1754808548224,2476.38116652,0.0003,120]
[378268741,1754808569790,215.20074585,0.00020551,5]
[378268742,1754808578488,160.0,0.0002,3]
[378268743,1754808593236,1866.76371369,0.0003,120]
[378268744,1754808603202,1602.13,0.00030137,120]
[378268745,1754808603326,2916.36765011,0.00030137,120]
[378268746,1754808603360,320.78399066,0.00030137,120]
[378268747,1754808603401,260.73432221,0.00030137,120]
[378268748,1754808603436,2199.0,0.00030137,120]
[378268749,1754808603470,187.30932765,0.00030137,120]
[378268750,1754808603506,897.16,0.00030137,120]
[378268751,1754808603534,151.61,0.00023,30]
[378268752,1754808603568,1233.0,0.00030137,120]
[378268753,1754808603604,625.0,0.00029255,120]
[378268754,1754808606269,1444.0,0.00029041,120]
[378268755,1754808611121,3000.0,0.00031528,120]
[378268756,1754808628103,150.5,0.00021908,120]
[378268757,1754808628606,150.5,0.00021898,120]
[378268758,1754808629115,150.5,0.00021888,120]
[378268759,1754808629620,150.5,0.00024889,120]
[378268760,1754808630077,150.5,0.00024879,120]
[378268764,1754808631676,150.5,0.00024869,120]
[378268795,1754808632774,283.89,0.0002786,120]
[378268831,1754808638165,-2519.3619688,0.00021239,2]
[378268833,1754808638175,-817.57315779,0.00021273,2]
[378268835,1754808638184,-803.0,0.00021331,10]
[378268837,1754808638194,-1200.0,0.00021339,2]
[378268839,1754808638203,-300.0,0.00021339,2]
[378268841,1754808638212,-472.8165666,0.0002134,2]
[378268843,1754808638222,-460.0,0.0002134,2]
[378268845,1754808638233,-460.0,0.0002134,2]
[378268847,1754808638242,-460.58084077,0.0002134,2]
[378268848,1754808638252,-460.0,0.0002134,2]
[378268851,1754808638261,-460.0,0.0002134,2]
[378268852,1754808638273,-478.96,0.0002134,2]
[378268855,1754808638282,-460.0,0.0002134,2]
[378268856,1754808638292,-460.0,0.0002134,2]
[378268858,1754808638303,-466.55244644,0.0002134,2]
[378268860,1754808638312,-460.0,0.0002134,2]
[378268863,1754808638321,-461.25144439,0.0002134,2]
[378268865,1754808638331,-460.0,0.0002134,2]
[378268867,1754808638340,-460.0,0.0002134,2]
[378268869,1754808638349,-617.90321144,0.0002134,2]
[378268871,1754808638359,-265.0,0.0002134,2]
[378268873,1754808638368,-500.0,0.0002134,2]
[378268874,1754808638377,-650.0,0.0002134,2]
[378268875,1754808638386,-500.0,0.0002134,2]
[378268876,1754808638397,-500.0,0.0002134,2]
[378268877,1754808638406,-500.0,0.0002134,2]
[378268878,1754808638415,-500.0,0.0002134,2]
[378268879,1754808638424,-500.0,0.0002134,2]
[378268880,1754808638433,-500.0,0.0002134,2]
[378268881,1754808638446,-500.0,0.0002134,2]
[378268882,1754808638455,-500.0,0.0002134,2]
[378268883,1754808638465,-500.0,0.0002134,2]
[378268884,1754808638474,-453.67480221,0.0002134,2]
[378268885,1754808638484,-500.0,0.0002134,2]
[378268886,1754808638493,-500.0,0.0002134,2]
[378268887,1754808638502,-500.0,0.0002134,2]
[378268888,1754808638512,-500.0,0.0002134,2]
[378268889,1754808638521,-500.0,0.0002134,2]
[378268890,1754808638531,-500.0,0.0002134,2]
[378268891,1754808638540,-500.0,0.0002134,2]
[378268892,1754808638549,-500.0,0.0002134,2]
[378268893,1754808638558,-500.0,0.0002134,2]
[378268894,1754808638568,-500.0,0.0002134,2]
[378268895,1754808638577,-500.0,0.0002134,2]
[378268896,1754808638587,-500.0,0.0002134,2]
[378268897,1754808638596,-500.0,0.0002134,2]
[378268898,1754808638605,-307.87017121,0.0002134,2]
[378268899,1754808638614,-500.0,0.0002134,2]
[378268900,1754808638623,-500.0,0.0002134,2]
[378268901,1754808638633,-160.0,0.0002134,2]
[378268902,1754808638643,-461.28698788,0.00021341,2]
[378268903,1754808638652,-460.0,0.00021341,2]
[378268904,1754808638661,-460.0,0.00021341,2]
[378268905,1754808638671,-460.0,0.00021341,2]
[378268906,1754808638680,-460.0,0.00021341,2]
[378268907,1754808638690,-460.0,0.00021341,2]
[378268908,1754808638699,-460.0,0.00021341,2]
[378268909,1754808638708,-460.0,0.00021341,2]
[378268910,1754808638718,-460.0,0.00021341,2]
[378268912,1754808638727,-460.0,0.00021341,2]
[378268914,1754808638736,-460.59777338,0.00021341,2]
[378268916,1754808638746,-460.0,0.00021341,2]
[378268918,1754808638755,-460.0,0.00021341,2]
[378268920,1754808638765,-460.0,0.00021341,2]
[378268922,1754808638775,-460.0,0.00021341,2]
[378268924,1754808638785,-460.0,0.00021341,2]
[378268926,1754808638794,-460.0,0.00021341,2]
[378268928,1754808638803,-460.0,0.00021341,2]
[378268929,1754808638813,-460.0,0.00021341,2]
[378268930,1754808638822,-340.63021695,0.00021341,2]
[378268931,1754808638832,-461.44166315,0.00021341,2]
[378268932,1754808638842,-470.40173547,0.00021341,2]
[378268933,1754808638851,-460.92454424,0.00021341,2]
[378268934,1754808638861,-460.0,0.00021341,2]
[378268935,1754808638871,-460.0,0.00021341,2]
[378268936,1754808638881,-460.0,0.00021341,2]
[378268937,1754808638890,-460.0,0.00021341,2]
[378268938,1754808638901,-460.0,0.00021341,2]
[378268939,1754808638912,-460.0,0.00021341,2]
[378268940,1754808638922,-460.0,0.00021341,2]
[378268941,1754808638931,-460.0,0.00021341,2]
[378268942,1754808638940,-460.0,0.00021341,2]
[378268943,1754808638950,-460.0,0.00021341,2]
[378268944,1754808638960,-460.0,0.00021341,2]
[378268945,1754808638970,-460.0,0.00021341,2]
[378268946,1754808638980,-460.0,0.00021341,2]
[378268947,1754808638989,-460.0,0.00021341,2]
[378268948,1754808638999,-460.0,0.00021341,2]
[378268949,1754808639009,-460.0,0.00021341,2]
[378268950,1754808639018,-460.0,0.00021341,2]
[378268951,1754808639028,-460.0,0.00021341,2]
[378268952,1754808639037,-460.0,0.00021341,2]
[378268953,1754808639046,-460.0,0.00021341,2]
[378268954,1754808639056,-460.0,0.00021341,2]
[378268955,1754808639065,-460.0,0.00021341,2]
[378268956,1754808639075,-974.26,0.00021341,2]
[378268957,1754808639084,-460.0,0.00021341,2]
[378268958,1754808639094,-460.0,0.00021341,2]
[378268959,1754808639104,-460.0,0.00021341,2]
[378268960,1754808639113,-460.0,0.00021341,2]
[378268961,1754808639123,-464.28318477,0.00021341,2]
[378268962,1754808639132,-465.24322119,0.00021341,2]
[378268963,1754808639141,-460.0,0.00021341,2]
[378268964,1754808639151,-460.0,0.00021341,2]
[378268965,1754808639160,-460.0,0.00021341,2]
[378268966,1754808639171,-3612.74677164,0.00021341,2]
[378268967,1754808639184,-460.0,0.00021341,2]
[378268968,1754808639196,-274.64385028,0.00021341,2]
[378268969,1754808639235,1244.50914246,0.0003,120]
[378268970,1754808639256,-3874.72676492,0.00021341,2]
[378268971,1754808639266,-460.0,0.00021341,2]
[378268972,1754808639275,-461.60974076,0.00021341,2]
[378268973,1754808639284,-460.0,0.00021341,2]
[378268974,1754808639293,-460.0,0.00021341,2]
[378268975,1754808639304,-1375.57,0.00021341,2]
[378268976,1754808639317,-460.0,0.00021341,2]
[378268977,1754808639327,-460.0,0.00021341,2]
[378268978,1754808639339,-460.0,0.00021341,2]
[378268979,1754808639348,-460.0,0.00021341,2]
[378268980,1754808639358,-460.0,0.00021341,2]
[378268981,1754808639367,-460.0,0.00021341,2]
[378268982,1754808639377,-460.0,0.00021341,2]
[378268983,1754808639387,-460.0,0.00021341,2]
[378268984,1754808639396,-460.0,0.00021341,2]
[378268985,1754808639406,-476.57804153,0.00021341,2]
[378268986,1754808639415,-460.0,0.00021341,2]
[378268987,1754808639424,-460.0,0.00021341,2]
[378268988,1754808639434,-460.0,0.00021341,2]
[378268989,1754808639444,-460.0,0.00021341,2]
[378268990,1754808639453,-461.40372097,0.00021341,2]
[378268991,1754808639462,-460.0,0.00021341,2]
[378268992,1754808639472,-460.0,0.00021341,2]
[378268993,1754808639482,-460.0,0.00021341,2]
[378268994,1754808639491,-460.0,0.00021341,2]
[378268995,1754808639500,-460.0,0.00021341,2]
[378268996,1754808639509,-460.0,0.00021341,2]
[378268997,1754808639518,-460.0,0.00021341,2]
[378268998,1754808639528,-460.0,0.00021341,2]
[378268999,1754808639538,-460.0,0.00021341,2]
[378269000,1754808639547,-460.0,0.00021341,2]
[378269001,1754808639557,-460.0,0.00021341,2]
[378269002,1754808639566,-460.0,0.00021341,2]
[378269003,1754808639576,-460.0,0.00021341,2]
[378269004,1754808639585,-363.18123439,0.00021341,2]
[378269005,1754808639594,-460.0,0.00021341,2]
[378269006,1754808639604,-460.0,0.00021341,2]
[378269007,1754808639614,-460.0,0.00021341,2]
[378269008,1754808639623,-460.0,0.00021341,2]
[378269009,1754808639633,-460.0,0.00021341,2]
[378269010,1754808639643,-460.0,0.00021341,2]
[378269012,1754808639653,-460.0,0.00021341,2]
[378269014,1754808639662,-460.0,0.00021341,2]
[378269016,1754808639671,-460.0,0.00021341,2]
[378269018,1754808639680,-460.0,0.00021341,2]
[378269020,1754808639690,-460.0,0.00021341,2]
[378269021,1754808639699,-460.0,0.00021341,2]
[378269023,1754808639709,-460.0,0.00021341,2]
[378269025,1754808639719,-460.0,0.00021341,2]
[378269028,1754808639729,-460.50383532,0.00021341,2]
[378269030,1754808639739,-460.0,0.00021341,2]
[378269032,1754808639749,-50000.0,0.00021341,2]
[378269034,1754808639758,-500.0,0.00021342,2]
[378269051,1754808639951,-460.0,0.00021342,2]
[378269053,1754808639962,-460.0,0.00021342,2]
[378269055,1754808639972,-463.15812688,0.00021342,2]
[378269057,1754808639982,-460.0,0.00021342,2]
[378269059,1754808639991,-460.32206531,0.00021342,2]
[378269061,1754808640001,-460.0,0.00021342,2]
[378269063,1754808640011,-460.0,0.00021342,2]
[378269065,1754808640020,-460.0,0.00021342,2]
[378269067,1754808640030,-460.0,0.00021342,2]
[378269069,1754808640039,-527.27682354,0.00021342,2]
[378269071,1754808640049,-460.0,0.00021342,2]
[378269073,1754808640058,-460.0,0.00021342,2]
[378269075,1754808640068,-460.0,0.00021342,2]
[378269077,1754808640078,-460.0,0.00021342,2]
[378269079,1754808640088,-471.43955669,0.00021342,2]
[378269081,1754808640097,-460.0,0.00021342,2]
[378269083,1754808640106,-460.0,0.00021342,2]
[378269085,1754808640116,-460.0,0.00021342,2]
[378269087,1754808640125,-460.0,0.00021342,2]
[378269089,1754808640135,-461.21306442,0.00021342,2]
[378269091,1754808640144,-460.0,0.00021342,2]
[378269093,1754808640153,-460.0,0.00021342,2]
[378269095,1754808640163,-460.0,0.00021342,2]
[378269097,1754808640171,-62.37401541,0.00021342,2]
[378269099,1754808640184,-398.59183935,0.00021342,2]
[378269101,1754808640194,-460.0,0.00021342,2]
[378269103,1754808640203,-460.0,0.00021342,2]
[378269105,1754808640213,-200.0,0.00021342,10]
[378269107,1754808640224,-204.50431,0.00021342,10]
[378269109,1754808640234,-460.0,0.00021342,2]